Cogmind - Beta 13 @@@ ROGUE MODE // 2024.07.20 @ 10:37:42 Player: saltine Result: Self-destructed Performance ------------- Evolutions (1) 500 Regions Visited (4) 800 Robots Destroyed (21) 105 Value Destroyed (629) 629 Prototype IDs (23) 460 Alien Tech Used (0) 0 Bonus (388) 388 TOTAL SCORE: 2882 Bonus ------- Follower Combat Kills 88 Aligned with FarCom 300 Cogmind --------- Core Integrity 278/400 Matter 271/300 Energy 238/250 System Corruption 5% Temperature Cool (0) Movement Treading (160) Location -9/Exiles Parts ------- > --- POWER (1) -------- Ion Engine > --- PROPULSION (3) --- Light Treads Light Treads Light Treads > --- UTILITY (3) ------ High-capacity Storage Unit Sensor Array Skeleton Box > --- WEAPON (2) ------- (None) > --- INVENTORY (20) --- Light Ion Engine Light Nuclear Core Light Treads Light Treads Aluminum Leg Aluminum Leg Wheel Wheel Heat Sink EM Pulse Gun EM Pulse Gun Beam Rifle Light Assault Rifle Light Assault Rifle Light Assault Rifle Heavy Assault Rifle Heavy Assault Rifle Makeshift Shrapnel Gun Light Cannon Grenade Launcher Peak State ------------ > --- POWER ------------ Ion Engine > --- PROPULSION ------- Light Treads Light Treads Light Treads > --- UTILITY ---------- High-capacity Storage Unit Sensor Array Skeleton Box > --- WEAPON ----------- (None) > --- INVENTORY -------- Light Ion Engine Light Nuclear Core Light Treads Light Treads Aluminum Leg Aluminum Leg Wheel Wheel Heat Sink EM Pulse Gun EM Pulse Gun Beam Rifle Light Assault Rifle Light Assault Rifle Light Assault Rifle Heavy Assault Rifle Heavy Assault Rifle Makeshift Shrapnel Gun Light Cannon Grenade Launcher [Rating: 14] Favorites ----------- Power Ion Engine Engine Ion Engine Propulsion Light Treads Treads Light Treads Leg Aluminum Leg Utility Sensor Array Device Sensor Array Storage Huge Storage Unit Protection Light Armor Plating Weapon Light Assault Rifle Energy Gun Beam Rifle Ballistic Gun Light Assault Rifle Build | -11 -10 -9 -9 -9 ------- Run | Yrd Mat Mat Min Exi Slots Evolved 2 | . . 2 . . Power . | . . . . . Propulsion 1 | . . 1 . . Utility 1 | . . 1 . . Weapon . | . . . . . Parts Attached 15 | 2 2 7 3 1 Power 2 | . . 1 1 . Engine 2 | . . 1 1 . Core . | . . . . . Reactor . | . . . . . Propulsion 5 | 2 . 3 . . Treads 5 | 2 . 3 . . Leg . | . . . . . Wheel . | . . . . . Hover . | . . . . . Flight . | . . . . . Utility 5 | . 2 1 1 1 Device 2 | . 1 . . 1 Storage 2 | . 1 . 1 . Processor . | . . . . . Hackware . | . . . . . Protection 1 | . . 1 . . Artifact . | . . . . . Weapon 3 | . . 2 1 . Energy Gun 2 | . . 1 1 . Energy Cannon . | . . . . . Ballistic Gun 1 | . . 1 . . Ballistic Cannon . | . . . . . Launcher . | . . . . . Special Weapon . | . . . . . Impact Weapon . | . . . . . Slashing Weapon . | . . . . . Piercing Weapon . | . . . . . Special Melee Weapon . | . . . . . Unidentified Prototypes . | . . . . . Parts Lost 3 | . . 2 1 . Power 1 | . . 1 . . Propulsion 1 | . . 1 . . Utility . | . . . . . Weapon 1 | . . . 1 . Highest Loss Streak 1 | . . 1 1 . To Critical Strikes 1 | . . 1 . . Average Slot Usage (%) 92 | . 96 86 100 78 Engine 10 | . 14 8 11 11 Treads 31 | . 28 31 33 33 Device 10 | . 10 11 11 11 Storage 11 | . 14 11 11 11 Protection 6 | . . 3 11 10 Energy Gun 10 | . 14 11 11 . Ballistic Gun 10 | . 14 11 11 . Naked Turns . | . . . . . Heaviest Build 93 | 11 87 93 93 53 Greatest Support 60 | 40 40 60 60 60 Greatest Overweight (x) 2 | . 2 2 1 . Average Overweight (x) . | . 1 1 . . Largest Inventory Capacity 25 | 8 25 25 25 20 Average Capacity 23 | 8 24 25 22 20 Most Carried 20 | 6 9 16 18 20 Average Carried 13 | 6 7 13 16 19 Final Capacity 25 | 8 25 25 20 20 Final Carried 20 | 6 9 15 18 20 Class Distribution -------------------- 54% | Mutant 45% | Scavenger-Mutant Dominant Class ---------------- Mutant | -10/Materials Mutant | -9/Materials Scavenger-Mutant | -9/Mines Mutant | -9/Exiles Resources | -11 -10 -9 -9 -9 ----------- Run | Yrd Mat Mat Min Exi Matter Collected 488 | 194 63 144 87 . Remotely . | . . . . . Salvage Created 797 | . 139 572 86 . Parts 45 | . 8 26 11 . Haulers Intercepted . | . . . . . Recyclers Shooed 1 | . 1 . . . Parts Field Recycled . | . . . . . Retrieved Matter . | . . . . . Parts Self-Destructed . | . . . . . Prevented . | . . . . . Kills | -11 -10 -9 -9 -9 ------- Run | Yrd Mat Mat Min Exi Combat Hostiles Destroyed 21 | . 3 12 6 . Guns 21 | . 3 12 6 . Classes Destroyed 4 | . 1 2 1 . Swarmer 6 | . . . 6 . Grunt 10 | . 3 7 . . Brawler 1 | . . 1 . . Sentry 4 | . . 4 . . Best Kill Streak 3 | . 1 3 3 . Combat Bots Only 3 | . 1 3 3 . Max Kills in Single Turn 1 | . 1 1 1 . Gunslinging . | . . . . . Exploded . | . . . . . Melee . | . . . . . Uniques/NPCs Destroyed . | . . . . . Combat | -11 -10 -9 -9 -9 -------- Run | Yrd Mat Mat Min Exi Hostile Shots Fired 127 | . 20 63 44 . Missed 44 | . 6 25 13 . Damage Taken 928 | . 154 472 302 . Core 144 | . 22 75 47 . Absorbed by Shields . | . . . . . Core Remaining (%) 95 | 100 91 . . . Volleys Fired 74 | . 17 44 13 . Largest 2 | . 2 2 2 . Hottest 85 | . 60 85 76 . Shots Fired 148 | . 34 88 26 . Gun 148 | . 34 88 26 . Cannon . | . . . . . Launcher . | . . . . . Special . | . . . . . Kinetic 73 | . 17 44 12 . Thermal 53 | . . 39 14 . Explosive . | . . . . . Electromagnetic 22 | . 17 5 . . Robot Hit Streak 11 | . 3 11 7 . Robot Miss Streak 4 | . 4 3 3 . Penetration Max . | . . . . . Secondary Targets 5 | . . 3 2 . Max Gunslinging Chain 1 | . . 1 1 . Shots Hit Robots 89 | . 15 57 17 . Core Hits 40 | . 8 26 6 . Critical Kills . | . . . . . Critical Parts Destroyed . | . . . . . Critical Strikes 3 | . . 3 . . Burn 3 | . . 3 . . Melee Attacks . | . . . . . Impact . | . . . . . Slashing . | . . . . . Piercing . | . . . . . Sneak Attacks . | . . . . . Combat Hostiles . | . . . . . Follow-up Attacks . | . . . . . Damage Inflicted 1117 | . 167 751 199 . Guns 1070 | . 167 706 197 . Cannons . | . . . . . Explosions 45 | . . 45 . . Melee . | . . . . . Ramming 2 | . . . 2 . Kinetic 355 | . 73 212 70 . Thermal 609 | . . 482 127 . Explosive . | . . . . . Electromagnetic 151 | . 94 57 . . Impact . | . . . . . Slashing . | . . . . . Piercing . | . . . . . Highest Corruption 5 | . . 5 5 5 Average Corruption 4 | . . 2 5 5 Corruption Purged . | . . . . . Corruption Blocked . | . . . . . Effects 38 | . . 11 25 2 Message Errors 9 | . . 4 4 1 Matter Fused 12 | . . 3 8 1 Heat Flow Errors 3 | . . 1 2 . Energy Discharges 3 | . . . 3 . Data Loss (minor) 2 | . . 1 1 . Data Loss (major) 2 | . . 1 1 . Misfires 3 | . . 1 2 . Alerts 2 | . . . 2 . Weapon Failures 2 | . . . 2 . Overload Shots . | . . . . . Overflow Damage . | . . . . . Projectiles . | . . . . . Explosions . | . . . . . Melee . | . . . . . Knockbacks . | . . . . . Impact . | . . . . . Kinetic . | . . . . . Secondary . | . . . . . Self-Inflicted Damage . | . . . . . Shots . | . . . . . Rammed 2 | . . 1 1 . Targets Rammed 2 | . . 1 1 . Kicked . | . . . . . Crushed . | . . . . . Highest Temperature 440 | . 114 440 131 . Average Temperature 74 | . 49 90 50 . Received Heat Transfer 327 | . 84 189 54 . Effects 2 | . . 2 . . Energy Bleed 1 | . . 1 . . Matter Decay 1 | . . 1 . . Siege Activations . | . . . . . Robots Corrupted . | . . . . . Combat Hostiles . | . . . . . Parts Fried . | . . . . . Impact Corruptions . | . . . . . Robots Melted . | . . . . . Combat Hostiles . | . . . . . Parts Melted 3 | . . 2 1 . Heat Transferred 1678 | . . 1345 333 . Parts Sabotaged . | . . . . . Parts Stolen . | . . . . . Parts Stripped . | . . . . . Power Chain Reactions 1 | . . 1 . . Alert | -11 -10 -9 -9 -9 ------- Run | Yrd Mat Mat Min Exi Peak Influence 286 | . 65 194 286 . Initial 70 | . . 12 70 . Average 111 | . 30 109 159 . Maximum Alert Level 1 | . . . 1 . Low Security (%) 93 | 100 100 100 83 . Level 1 6 | . . . 16 . Level 2 . | . . . . . Level 3 . | . . . . . Level 4 . | . . . . . Level 5 . | . . . . . High Security . | . . . . . Max Security . | . . . . . Squads Dispatched 4 | . 1 3 . . Investigation . | . . . . . Extermination . | . . . . . Reinforcement 4 | . 1 3 . . Assault . | . . . . . Garrison . | . . . . . Intercept . | . . . . . Searches Triggered . | . . . . . Construction Impeded 1 | . . 1 . . Haulers Reinforced . | . . . . . Active Scanning Responses . | . . . . . Cargo Convoy Interrupts . | . . . . . Stealth | -11 -10 -9 -9 -9 --------- Run | Yrd Mat Mat Min Exi Distress Signals 3 | . 1 2 . . Communications Jammed . | . . . . . Distress Signals . | . . . . . Times Spotted 31 | . 5 14 12 . Peak Tracking Total 4 | . 3 3 4 . Tactical Retreats . | . . . . . Traps | -11 -10 -9 -9 -9 ------- Run | Yrd Mat Mat Min Exi Traps Triggered 4 | . . 4 . . Indirectly . | . . . . . Trap Hack Attempts . | . . . . . Triggered . | . . . . . Disarmed . | . . . . . Reprogrammed . | . . . . . Reused . | . . . . . Traps Extracted . | . . . . . Installed . | . . . . . Triggered . | . . . . . Machines | -11 -10 -9 -9 -9 ---------- Run | Yrd Mat Mat Min Exi Machines Disabled . | . . . . . Max in Single Turn . | . . . . . Machines Repaired . | . . . . . Machines Dismantled . | . . . . . Machines Sabotaged . | . . . . . Overloaded Fab Kills . | . . . . . Hacking | -11 -10 -9 -9 -9 --------- Run | Yrd Mat Mat Min Exi Machines Accessed 3 | . 1 1 . 1 Terminals 2 | . 1 1 . . Fabricators . | . . . . . Repair Stations . | . . . . . Recycling Units . | . . . . . Scanalyzers . | . . . . . Garrison Access . | . . . . . Total Hacks 8 | . 3 4 . 1 Successful 2 | . . 1 . 1 Failed 6 | . 3 3 . . Catastrophic 3 | . 2 1 . . Database Lockouts . | . . . . . Manual 4 | . 3 . . 1 Terminals 7 | . 3 4 . . Fabricators . | . . . . . Repair Stations . | . . . . . Recycling Units . | . . . . . Scanalyzers . | . . . . . Garrison Access . | . . . . . Terminal Hacks 2 | . . 1 . 1 Branch Access Points 1 | . . 1 . . Derelict Proto ID Bank 1 | . . . . 1 Fabricator Hacks . | . . . . . Repair Station Hacks . | . . . . . Recycling Unit Hacks . | . . . . . Scanalyzer . | . . . . . Garrison Access Hacks . | . . . . . Unauthorized Hacks . | . . . . . Terminals . | . . . . . Fabricators . | . . . . . Repair Stations . | . . . . . Recycling Units . | . . . . . Scanalyzers . | . . . . . Garrison Access . | . . . . . Data Cores Recovered . | . . . . . Used . | . . . . . Hacking Detections 2 | . 1 1 . . Full Trace Events . | . . . . . Feedback Events . | . . . . . Feedback Blocked . | . . . . . Robot Schematics Acquired . | . . . . . Robots Built . | . . . . . Authchips . | . . . . . Time . | . . . . . Total Robot Build Rating . | . . . . . Part Schematics Acquired . | . . . . . Parts Built . | . . . . . Authchips . | . . . . . Time . | . . . . . Total Part Build Rating . | . . . . . Parts Repaired . | . . . . . Time . | . . . . . Parts Recycled . | . . . . . Recycled Matter . | . . . . . Retrieved Matter . | . . . . . Retrieved Components . | . . . . . Parts Scanalyzed . | . . . . . Part Schematics Acquired . | . . . . . Parts Damaged . | . . . . . Bothacking | -11 -10 -9 -9 -9 ------------ Run | Yrd Mat Mat Min Exi Used RIF Installer . | . . . . . Robots Hacked . | . . . . . Non-combat . | . . . . . Combat . | . . . . . Robot Hacks Applied . | . . . . . Relay Couplers Released . | . . . . . Fabnet Peak Effective % . | . . . . . Robots Rewired . | . . . . . Allies Hacked . | . . . . . Hacks Repelled . | . . . . . Allies | -11 -10 -9 -9 -9 -------- Run | Yrd Mat Mat Min Exi Total Allies 2 | . . . 2 . Largest Group 2 | . . . 2 2 Highest-Rated Group 48 | . . . 48 48 Highest-Rated Ally 31 | . . . 31 31 Total Orders . | . . . . . Ally Attacks 16 | . . . 16 . Total Damage 273 | . . . 273 . Kills 6 | . . . 6 . Allies Corrupted . | . . . . . Allies Melted . | . . . . . Intel | -11 -10 -9 -9 -9 ------- Run | Yrd Mat Mat Min Exi Robot Analysis Total . | . . . . . Derelict Logs Recovered 1 | . . . 1 . Drone Launches . | . . . . . Drone Recoveries . | . . . . . Exploration | -11 -10 -9 -9 -9 ------------- Run | Yrd Mat Mat Min Exi Turns Passed 2089 | 3 416 718 765 187 Spaces Moved 845 | 1 118 226 385 115 Core . | . . . . . Treads 845 | 1 118 226 385 115 Legs . | . . . . . Wheels . | . . . . . Hover . | . . . . . Flight . | . . . . . Fastest Speed 160 | 160 160 240 160 160 Average Speed 215 | 160 307 248 185 160 Slowest Speed 320 | 160 320 320 240 160 Overloaded Moves . | . . . . . Propulsion Burnouts . | . . . . . Robots Hopped . | . . . . . Cave-ins Triggered . | . . . . . Exploration Rate (%) 33 | 2 26 29 72 40 Regions Visited 4 Branch Regions 2 Pre-discovered Areas 1 | . . . 1 . Known Exits Taken 1 | . . 1 . . Unknown Exits Taken 3 | 1 1 . 1 . Scrap Searched 2 | . . . 2 . Spaces Dug . | . . . . . Terrain Destroyed 7 | . . 7 . . Melee . | . . . . . Projectile . | . . . . . AOE 7 | . . 7 . . Terrain Rammed . | . . . . . Walls Destroyed . | . . . . . Machines Disabled . | . . . . . Actions | -11 -10 -9 -9 -9 --------- Run | Yrd Mat Mat Min Exi Total 976 | 2 141 301 413 119 Wait 21 | . 1 15 5 . Move 841 | . 117 225 384 115 Hop . | . . . . . Pick Up 18 | . 3 9 6 . Fast Attach 5 | . 2 2 . 1 Attach 5 | . . 3 2 . Detach 2 | . . . . 2 Swap 5 | 2 . 2 1 . Drop 3 | . 1 . 1 1 Fire 74 | . 17 44 13 . Melee . | . . . . . Ram . | . . . . . Kick . | . . . . . Crush 2 | . . 1 1 . Escape Stasis . | . . . . . Rewire . | . . . . . Trap . | . . . . . Miscellaneous . | . . . . . Route ------- -11/Scrapyard -10/Materials -9/Materials (discovered 2 exits: [*Mat] / *Min) -9/Mines (discovered 2 exits: [*Mat] / *Exi) -9/Exiles History --------- Turn | Location | Event 4 | -11/Scrapyard | Discovered new exit (range 0) 4 | -11/Scrapyard | Entered Materials 300 | -10/Materials | Build established: Mutant 410 | -10/Materials | Discovered new exit (range 3) 420 | -10/Materials | Entered another Materials area 420 | -9/Materials | Evolved 2 slots: Propulsion x1, Utility x1 995 | -9/Materials | Discovered new exit (range 16) 1021 | -9/Materials | Identified exit to Mines 1138 | -9/Materials | Entered Mines 1272 | -9/Mines | Discovered new exit (range 5) 1274 | -9/Mines | Build established: Scavenger-Mutant 1552 | -9/Mines | A weapon hastily lodged in a ceiling crevice suddenly fell to the ground 1888 | -9/Mines | Deemed a non-threat by the Exiles lab entrance 1890 | -9/Mines | Discovered new exit (range 5) 1903 | -9/Mines | Entered Exiles 1903 | -9/Exiles | Accompanied by 2 allies 1933 | -9/Exiles | Led the pair of lost Derelicts to a safe place 1943 | -9/Exiles | Met 8R-AWN 1970 | -9/Exiles | Met EX-HEX 2016 | -9/Exiles | Met EX-BIN 2036 | -9/Exiles | Aligned with FarCom system 2037 | -9/Exiles | Given EX-Vault access code 2076 | -9/Exiles | Opened EX-Vault 2089 | -9/Exiles | Found Skeleton Box 2090 | -9/Exiles | Self-destructed Last Messages --------------- Cloak of Protection Skeleton Box Trap Reconfigurator Supersonic Drone Bay Army-in-a-Box PSU Rigger Chronowheel AWS/Thermal Latent Energy Streamer Gui. Plasma Cannon Firepult YOLO Cannon AWS/Gauss XL Autogun Array AWS/Autocannon Field Lobotomy Kit Longsword +1 Deploy-a-Sentry 02088_ Dropped Lgt. Armor Plating. 02089_ Acquired Skeleton Box. Map ----- +----------------------------------------------------+ | | | | | | | | | | | | | | | | | | | | | | | | | | | | | | | | | | | | | | | | | | | | | | | ???????????????????????#########?????????????????? | | ???????????????????????# | #?????????????????? | | ???????????????????????#!@ ! #?????????????????? | | ???????????????????????# #?????????????????? | | ???????????????????????# X#?????????????????? | | ???????????????????????## ##?????????????????? | | ???????????????????????#X #??????????????????? | | ???????????????????????## #??????????????????? | | ????????????????????????# #??????????????????? | | ????????????????????????# #???###????????????? | | ????????????????????????# #??"""""???????????? | | ????????????????????????# ## """???????????? | | ????????????????????????# X""???????????? | | ????????????????????????# ## """???????????? | | ??????????????????####??# #??"""""???????????? | | ??????????????????"""""?# #???###????????????? | | ?????????????????"""" ## #??????????????????? | | ????????????????#""X" #??????????????????? | | ????????????????#" #??????????????????? | | ????????????????#" ## #??????????????????? | | ????????????????#""""""?# #?#########????????? | | ?????????????????#"###??# #?#"""""""#????????? | | ????????????????????????# #?#"""""""#????????? | | ????????????????????????# #?#"""""""#????????? | | ???????????????????????## ###"" """"#????????? | | ???????????????????????#" """"#????????? | | ???????????????????????#" """#????????? | +----------------------------------------------------+ Best States ------------- Heat Dissipation 28 Energy Generation 10 Energy Capacity 250 Matter Stores 300 Matter Capacity 300 Sight Range 16 Robot Scan Range 14 Terrain Scan Density 10 Armor Coverage 150 Evasion (%) 40 Recoil Reduction 3 Item Schematics ----------------- None Robot Schematics ------------------ None Fabricated ------------ Nothing Alien Tech Used ----------------- None Achievements -------------- None Challenges ------------ None Game ------ Seed ThermicZioniteFlail Manual? 1 Play Time 00:12:19 Cumulative 75.9 hours Start 2024.07.20 @ 10:22:52 End 2024.07.20 @ 10:37:42 Sessions 1 Manual Loads 0 Difficulty Rogue Special Mode None Game No. 79 Rogue 79 Adventurer 0 Explorer 0 Win Type - Total 1 Types 1/0/0/0/0/0/0/0/0 Lore% 42 Gallery% 51 Achievement% 44 Wizard Run 0 Options --------- Layout 0 ASCII 0 Keyboard 0 Movement Arrows Keybinds 0 Fullscreen 2 Font 18/SmallcapsGlow Map View 76x50 Zoom Use 0% Tactical HUD 1 Map Filters NONE Filters NONE Steam 1 RUN: bbb09558-3502-4ef1-923f-e324a06055d6